bitfinex-derivatives/quotes_BTCF0:USTF0_20250324
["timestamp","ask_amount","ask_price","bid_price","bid_amount"]
[1742803371071,0.24330701,87055.0,87054.0,0.2951355]
[1742803373880,0.12730701,87055.0,87054.0,0.2951355]
[1742803374192,0.23183056,87055.0,87054.0,0.2951355]
[1742803380983,0.11567056,87055.0,87054.0,0.2951355]
[1742803381189,0.11487056,87055.0,87054.0,0.30975869]
[1742803381894,0.11487056,87055.0,87054.0,0.2951355]
[1742803382096,8e-05,87056.0,87055.0,0.1148676]
[1742803382394,0.11568,87069.0,87068.0,0.1148504]
[1742803382595,0.11628001,87069.0,87068.0,0.1148504]
[1742803382787,0.11628001,87069.0,87068.0,0.1155704]
[1742803382993,0.23115057,87069.0,87068.0,0.1155704]
[1742803383503,0.23115057,87069.0,87068.0,0.1767704]
[1742803384291,0.26275057,87069.0,87068.0,0.1767704]
[1742803385096,0.27396038,87069.0,87068.0,0.1767704]
[1742803386995,0.11547057,87069.0,87068.0,0.5375704]
[1742803387201,0.0029,87075.0,87074.0,0.1148425]
[1742803387505,0.11098479,87075.0,87074.0,0.1156025]
[1742803387697,0.22583688,87075.0,87074.0,0.1156025]
[1742803388209,0.22583688,87075.0,87074.0,0.1804025]
[1742803389710,0.11851209,87075.0,87074.0,0.1804025]
[1742803393810,0.18021209,87075.0,87074.0,0.1804025]
[1742803394209,0.3608,87104.0,87089.0,0.1148227]
[1742803394515,0.21596,87100.0,87099.0,0.1148095]
[1742803394709,0.1,87100.0,87099.0,0.3848095]
[1742803394909,0.21484418,87100.0,87099.0,0.3848095]
[1742803395901,0.21580419,87100.0,87099.0,0.4183695]
[1742803396102,0.21484418,87100.0,87099.0,0.2574095]
[1742803396304,0.21484418,87100.0,87099.0,0.2474095]
[1742803396504,0.21484418,87100.0,87099.0,0.2774095]
[1742803396800,0.21484418,87100.0,87099.0,0.2574095]
[1742803397410,0.21484418,87100.0,87099.0,0.3205095]
[1742803397596,0.21484418,87100.0,87099.0,0.4205095]
[1742803398700,0.21484418,87100.0,87099.0,0.2105095]
[1742803400115,0.21576418,87100.0,87099.0,0.2114295]
[1742803400705,0.15182808,87100.0,87099.0,0.3214295]
[1742803400909,0.0004,87112.0,87111.0,0.1147937]
[1742803401201,0.00160001,87112.0,87111.0,0.4767937]
[1742803401406,0.0004,87112.0,87111.0,0.4767937]
[1742803401607,0.1151954,87112.0,87111.0,0.4767937]
[1742803401903,0.1151954,87112.0,87111.0,0.5086937]
[1742803401904,0.11639541,87112.0,87111.0,0.5086937]
[1742803403913,8e-05,87114.0,87113.0,0.1147911]
[1742803404109,8e-05,87114.0,87113.0,0.2260311]
[1742803404617,0.11479277,87114.0,87113.0,0.2260311]
[1742803405016,8e-05,87117.0,87116.0,0.1147871]
[1742803405318,8e-05,87117.0,87116.0,0.1159871]
[1742803405817,0.11486881,87117.0,87116.0,0.1793871]
[1742803407306,0.11606882,87117.0,87116.0,0.1793871]
[1742803409613,0.34673462,87117.0,87116.0,0.1793871]
[1742803409807,0.1721839,87116.0,87113.0,0.1721825]
[1742803410011,0.20388391,87116.0,87115.0,0.1147878]
[1742803410207,0.20388391,87116.0,87115.0,0.1156278]
[1742803410614,0.31867404,87116.0,87115.0,0.1147878]
[1742803411419,0.43443404,87116.0,87115.0,0.1147878]
[1742803411820,0.43443404,87116.0,87115.0,0.1157078]
[1742803414325,0.43443404,87116.0,87115.0,0.00092]
[1742803414525,0.1721988,87110.0,87109.0,0.1147917]
[1742803414832,0.4188386,87110.0,87109.0,0.1153917]
[1742803415228,0.53362873,87110.0,87109.0,0.1153917]
[1742803416628,0.53362873,87110.0,87109.0,0.0006]
[1742803416817,0.1148139,87098.0,87097.0,0.1722135]
[1742803417016,0.5918139,87098.0,87097.0,0.0006]
[1742803417226,0.1148188,87092.0,87091.0,0.1749171]
[1742803417535,0.1155788,87092.0,87091.0,0.1154171]
[1742803417715,0.1155788,87092.0,87091.0,0.1148171]
[1742803418118,0.23039265,87092.0,87091.0,0.1148171]
[1742803419529,0.24170371,87092.0,87091.0,0.1148171]
[1742803419720,0.12688491,87092.0,87091.0,0.1148171]
[1742803419915,0.12688491,87092.0,87091.0,0.1154171]
[1742803420222,0.11557385,87092.0,87091.0,0.1154171]
[1742803421127,0.23077385,87092.0,87091.0,0.1154171]
[1742803434534,0.26377385,87092.0,87091.0,0.1154171]
[1742803434728,0.23077385,87092.0,87091.0,0.1154171]
[1742803435939,0.29387385,87092.0,87091.0,0.1154171]
[1742803437023,0.23077385,87092.0,87091.0,0.1154171]
[1742803442847,0.23077385,87092.0,87091.0,0.130123]
[1742803445746,0.11557385,87092.0,87091.0,0.130123]
[1742803446542,0.11557385,87092.0,87091.0,0.490923]
[1742803446748,0.11481385,87092.0,87091.0,0.490923]
[1742803446950,0.11557385,87092.0,87091.0,0.490923]
[1742803447154,0.00076,87092.0,87091.0,0.490923]
[1742803447451,8e-05,87093.0,87092.0,0.1148188]
[1742803447635,0.00084,87093.0,87092.0,0.1154188]
[1742803447838,0.00084,87093.0,87092.0,0.2103188]
[1742803448039,0.03174,87093.0,87092.0,0.2103188]
[1742803448349,0.17976176,87093.0,87092.0,0.2103188]
[1742803452451,0.29457916,87093.0,87092.0,0.1794188]
[1742803454049,0.17976176,87093.0,87092.0,0.1794188]
[1742803454660,0.17976176,87093.0,87092.0,0.19405523]
[1742803455056,0.17976176,87093.0,87092.0,0.1794188]
[1742803456859,0.29457916,87093.0,87092.0,0.1794188]
[1742803457066,0.40965916,87093.0,87092.0,0.1463188]
[1742803457264,0.40965916,87093.0,87092.0,0.1772188]
[1742803458563,0.40965916,87093.0,87092.0,0.19217437]
[1742803459956,0.40965916,87093.0,87092.0,0.1772188]
[1742803469770,0.26394176,87093.0,87092.0,0.1772188]
[1742803470767,0.29704176,87093.0,87092.0,0.1772188]
[1742803471771,0.41185916,87093.0,87092.0,0.1772188]
[1742803474972,0.29704176,87093.0,87092.0,0.1772188]
[1742803476079,0.41185916,87093.0,87092.0,0.19219235]
[1742803476278,0.29704176,87093.0,87092.0,0.19219235]
[1742803476482,0.29696176,87093.0,87092.0,0.19219235]
[1742803480567,0.11558176,87093.0,87092.0,0.19219235]
[1742803480769,0.23066176,87093.0,87092.0,0.19219235]
[1742803480973,0.11558176,87093.0,87092.0,0.19219235]
[1742803481480,0.11482176,87093.0,87092.0,0.19219235]
[1742803481780,0.11562176,87093.0,87092.0,0.19219235]
[1742803481973,0.0008,87093.0,87092.0,0.19219235]
[1742803482685,8e-05,87094.0,87093.0,0.1148174]
[1742803482874,8e-05,87094.0,87093.0,0.2096974]
[1742803483382,0.11490044,87094.0,87093.0,0.22467095]
[1742803483578,0.11566044,87094.0,87093.0,0.22467095]
[1742803488594,0.11566044,87094.0,87093.0,0.58547095]
[1742803488886,0.11490044,87094.0,87093.0,0.58547095]
[1742803493387,0.11566044,87094.0,87093.0,0.58547095]
[1742803496178,0.11490044,87094.0,87093.0,0.58547095]
[1742803497869,0.11566044,87094.0,87093.0,0.58547095]
[1742803500392,0.23047654,87094.0,87093.0,0.58547095]
[1742803500580,0.11566044,87094.0,87093.0,0.58547095]
[1742803502183,0.0573955,87113.0,87099.0,0.1148095]
[1742803502491,0.00093155,87100.0,87099.0,0.1154095]
[1742803502694,0.00093155,87100.0,87099.0,0.13038305]
[1742803502893,0.11574277,87100.0,87099.0,0.13038305]
[1742803503089,0.11574277,87100.0,87099.0,0.19308305]
[1742803505285,0.11574277,87100.0,87099.0,0.20452459]
[1742803505689,0.11498277,87100.0,87099.0,0.20452459]
[1742803506292,0.12668568,87100.0,87099.0,0.19308305]
[1742803506494,0.12744568,87100.0,87099.0,0.19308305]
[1742803506686,0.18878568,87100.0,87099.0,0.19308305]
[1742803507792,0.17708277,87100.0,87099.0,0.19308305]
[1742803508382,0.11498277,87100.0,87099.0,0.19308305]
[1742803508896,0.11498277,87100.0,87099.0,0.29308305]
[1742803511292,0.116119,87100.0,87099.0,0.29308305]
[1742803513688,0.4181765,87142.0,87120.0,0.1147819]
[1742803513902,0.1293656,87121.0,87120.0,0.1153819]
[1742803514088,0.11866,87121.0,87120.0,0.1153819]
[1742803514292,0.1179,87121.0,87120.0,0.1147819]
[1742803514492,0.23271122,87121.0,87120.0,0.1147819]
[1742803514688,0.26501122,87121.0,87120.0,0.1147819]
[1742803514893,0.29781122,87121.0,87120.0,0.1458819]
[1742803515105,0.3090175,87121.0,87120.0,0.1458819]
[1742803517800,0.1940175,87121.0,87120.0,0.1458819]
[1742803517993,0.3090175,87121.0,87120.0,0.1458819]
[1742803519503,0.3097775,87121.0,87120.0,0.1464819]
[1742803519999,0.424558,87121.0,87120.0,0.1153819]
[1742803525898,0.424558,87121.0,87120.0,0.1473819]
[1742803526706,0.3097775,87121.0,87120.0,0.1473819]
[1742803528214,0.3097375,87121.0,87120.0,0.1473819]
[1742803532415,0.2446375,87121.0,87120.0,0.1473819]
[1742803533009,0.1296775,87121.0,87120.0,0.1473819]
[1742803533203,0.3087375,87121.0,87120.0,0.1473819]
[1742803537607,0.40562896,87121.0,87120.0,0.1473819]
[1742803538816,0.21536268,87121.0,87120.0,0.1473819]
[1742803539714,0.11847122,87121.0,87120.0,0.1473819]
[1742803540309,0.0004,87128.0,87125.0,0.057387]
[1742803540512,0.0012,87128.0,87127.0,0.4755726]
[1742803540816,0.0012,87128.0,87127.0,0.4762526]
[1742803541016,0.11597564,87128.0,87127.0,0.5413526]
[1742803543019,0.11517564,87128.0,87127.0,0.5413526]
[1742803552711,0.18003564,87128.0,87127.0,0.5413526]
[1742803559519,0.29480694,87128.0,87127.0,0.4762526]
[1742803559721,0.1147726,87127.0,87126.0,0.1147738]
[1742803559915,0.2296926,87127.0,87126.0,0.1147738]
[1742803560222,0.29425261,87127.0,87126.0,0.00064]
[1742803560420,0.40902693,87127.0,87126.0,0.115414]
[1742803561532,0.29425433,87127.0,87126.0,0.115414]
[1742803561711,0.29425433,87127.0,87126.0,0.178814]
[1742803561912,0.17933433,87127.0,87126.0,0.539614]
[1742803562117,0.11573433,87127.0,87126.0,0.539614]
[1742803564316,0.11477432,87127.0,87126.0,0.539614]
[1742803564827,0.11477432,87127.0,87126.0,0.649614]
[1742803568422,0.11477432,87127.0,87126.0,0.539614]
[1742803568625,0.17867432,87127.0,87126.0,0.539614]
[1742803569623,0.22954692,87127.0,87126.0,0.476214]
[1742803569824,0.29550693,87127.0,87126.0,0.00064]
[1742803570215,0.29550693,87127.0,87126.0,0.115414]
[1742803572034,0.29550693,87127.0,87126.0,0.00064]
[1742803572329,0.29550693,87127.0,87126.0,0.115414]
[1742803576233,0.29550693,87127.0,87126.0,0.114774]
[1742803577134,0.29550693,87127.0,87126.0,0.115454]
[1742803577532,0.29550693,87127.0,87126.0,0.177654]
[1742803578032,0.29550693,87127.0,87126.0,0.147254]
[1742803578220,0.29550693,87127.0,87126.0,0.115454]
[1742803580437,0.29550693,87127.0,87126.0,0.00068]
[1742803580627,0.29550693,87127.0,87124.0,0.0573877]
[1742803580628,0.114774,87126.0,87125.0,0.1147749]
[1742803580833,0.11477432,87127.0,87126.0,0.114774]
[1742803581033,8e-05,87131.0,87128.0,0.057385]
[1742803581233,0.11596001,87131.0,87130.0,0.1147687]
[1742803581435,0.23072741,87131.0,87130.0,0.1771687]
[1742803581734,0.23064741,87131.0,87130.0,0.1777687]
[1742803581930,0.34542305,87131.0,87130.0,0.1777687]
[1742803582325,0.37772305,87131.0,87130.0,0.1777687]
[1742803583534,0.34542305,87131.0,87130.0,0.1777687]
[1742803584238,0.37722305,87131.0,87130.0,0.1777687]
[1742803584639,0.40952305,87131.0,87130.0,0.1777687]
[1742803590834,0.23065565,87131.0,87130.0,0.1777687]
[1742803592542,0.34542305,87131.0,87130.0,0.1777687]
[1742803592937,0.37782305,87131.0,87130.0,0.1777687]
[1742803593131,0.23065565,87131.0,87130.0,0.1777687]
[1742803593745,0.26305565,87131.0,87130.0,0.1777687]
[1742803594441,0.37782305,87131.0,87130.0,0.1777687]
[1742803595038,0.23065565,87131.0,87130.0,0.1777687]
[1742803595633,0.34542305,87131.0,87130.0,0.1777687]
[1742803595839,0.23065565,87131.0,87130.0,0.1777687]
[1742803596245,0.34542305,87131.0,87130.0,0.1777687]
[1742803596548,0.23065565,87131.0,87130.0,0.1777687]
[1742803596750,0.34542305,87131.0,87130.0,0.1777687]
[1742803597648,0.41122305,87131.0,87130.0,0.1777687]
[1742803597851,0.37862305,87131.0,87130.0,0.1777687]
[1742803598041,0.41122305,87131.0,87130.0,0.1777687]
[1742803599139,0.41118305,87131.0,87130.0,0.1777687]
[1742803599344,0.80418305,87131.0,87130.0,0.0309]
[1742803599548,0.1147713,87128.0,87127.0,0.1465717]
[1742803599750,0.11573131,87128.0,87127.0,0.1800717]
[1742803600053,0.11573131,87128.0,87127.0,0.0653]
[1742803600240,0.23050563,87128.0,87127.0,0.1800726]
[1742803602551,0.23050563,87128.0,87127.0,0.0653]
[1742803602752,0.23050563,87128.0,87127.0,0.0647]
[1742803603452,0.23050563,87128.0,87127.0,0.1794726]
[1742803603753,0.23050563,87128.0,87127.0,0.1801526]
[1742803603955,0.23050563,87128.0,87127.0,0.1800726]
[1742803605348,0.23050563,87128.0,87127.0,0.0653]
[1742803606146,0.23050563,87128.0,87127.0,0.0647]
[1742803606546,0.23050563,87128.0,87127.0,0.0653]
[1742803607341,0.23050563,87128.0,87127.0,0.0647]
[1742803607550,0.23050563,87128.0,87127.0,0.0653]
[1742803607753,0.23050563,87128.0,87124.0,0.1147759]
[1742803607754,0.11573433,87128.0,87104.0,0.3608]
[1742803607958,0.1147911,87113.0,87106.0,0.0607]
[1742803608161,0.23063111,87113.0,87106.0,0.0924]
[1742803608654,0.34540543,87113.0,87110.0,0.1147946]
[1742803608856,0.40850543,87113.0,87112.0,0.11556463]
[1742803609257,0.40850543,87113.0,87112.0,0.06517223]
[1742803609446,0.40850543,87113.0,87112.0,0.06457223]
[1742803610259,0.40850543,87113.0,87112.0,0.06525223]
[1742803610644,0.51104011,87113.0,87112.0,0.06457223]
[1742803610844,0.51104011,87113.0,87112.0,0.06521223]
[1742803611058,0.51104011,87113.0,87112.0,0.03287223]
[1742803611847,0.1147977,87108.0,87107.0,0.0319]
[1742803612061,0.11575771,87108.0,87107.0,0.147659]
[1742803612460,0.23055179,87108.0,87107.0,0.147659]
[1742803612650,0.302965,87108.0,87107.0,0.147659]
[1742803613157,0.302965,87108.0,87107.0,0.03286]
[1742803613352,0.1148029,87104.0,87100.0,0.1148078]
[1742803613658,0.23068291,87104.0,87103.0,0.11526352]
[1742803613957,0.34548358,87104.0,87103.0,0.11526352]
[1742803614360,0.40638358,87104.0,87103.0,0.11526352]
[1742803614551,0.40638358,87104.0,87103.0,0.11594352]
[1742803614950,0.40638358,87104.0,87103.0,0.14754352]
[1742803618052,0.40638358,87104.0,87103.0,0.11594352]
[1742803618353,0.40638358,87104.0,87103.0,0.14824352]
[1742803618560,0.40638358,87104.0,87103.0,0.18104352]
[1742803622161,0.40638358,87104.0,87103.0,0.06623922]
[1742803623961,0.40638358,87104.0,87103.0,0.06555922]
[1742803624161,0.40638358,87104.0,87103.0,0.06619922]
[1742803625363,0.40638358,87104.0,87103.0,0.06555922]
[1742803625662,0.40638358,87104.0,87103.0,0.06615922]
[1742803628055,0.40638358,87104.0,87103.0,0.06555922]
[1742803628257,0.40638358,87104.0,87103.0,0.06615922]
[1742803628457,0.40638358,87104.0,87103.0,0.06555922]
[1742803628665,0.41038358,87104.0,87103.0,0.06615922]
[1742803628865,0.41038358,87104.0,87103.0,0.18036352]
[1742803629065,0.41038358,87104.0,87103.0,0.18096352]
[1742803629369,0.38028358,87104.0,87103.0,0.18096352]
[1742803629756,0.37628358,87104.0,87103.0,0.18096352]
[1742803629952,0.41198358,87104.0,87103.0,0.18096352]
[1742803631768,0.40998358,87104.0,87103.0,0.18096352]
[1742803633253,0.11776068,87104.0,87103.0,0.18096352]
[1742803633458,0.23268068,87104.0,87103.0,0.18096352]
[1742803634469,0.34748358,87104.0,87103.0,0.18096352]
[1742803635065,0.23268068,87104.0,87103.0,0.18096352]
[1742803636267,0.34748358,87104.0,87103.0,0.18096352]
[1742803636770,0.23268068,87104.0,87103.0,0.54176352]
[1742803639667,0.11776068,87104.0,87103.0,0.54176352]
[1742803640057,0.11488,87109.0,87105.0,0.0574005]
[1742803640364,0.12629789,87109.0,87108.0,0.1147977]
[1742803640576,0.12629789,87109.0,87108.0,0.1153977]
[1742803640761,0.1273379,87109.0,87108.0,0.1153977]
[1742803641069,0.24214384,87109.0,87108.0,0.1153977]
[1742803643869,0.12726384,87109.0,87108.0,0.1153977]
[1742803645170,0.11584595,87109.0,87108.0,0.1153977]
[1742803645877,0.12744512,87109.0,87108.0,0.1153977]
[1742803651367,0.24224152,87109.0,87108.0,0.1153977]
[1742803651566,0.30664152,87109.0,87108.0,0.1153977]
[1742803653086,0.19184512,87109.0,87108.0,0.1153977]
[1742803653890,0.30664152,87109.0,87108.0,0.1153977]
[1742803654891,0.30664152,87109.0,87108.0,0.4761977]
[1742803658602,0.30664152,87109.0,87108.0,0.5404977]
[1742803662307,0.19184512,87109.0,87108.0,0.5404977]
[1742803662693,0.30664152,87109.0,87108.0,0.5404977]
[1742803666503,0.42148152,87109.0,87108.0,0.5404977]
[1742803670310,0.30668512,87109.0,87108.0,0.5404977]
[1742803671216,0.42148152,87109.0,87108.0,0.5404977]
[1742803678130,0.42148152,87109.0,87108.0,0.1796977]
[1742803678328,0.45158152,87109.0,87108.0,0.0006]
[1742803678630,0.1722037,87105.0,87104.0,0.1148025]
[1742803678816,0.17316371,87105.0,87104.0,0.1148025]
[1742803679017,0.17316371,87105.0,87104.0,0.1808025]
[1742803679317,0.28796834,87105.0,87104.0,0.1808025]
[1742803679627,0.35156834,87105.0,87104.0,0.1808025]
[1742803680332,0.35156834,87105.0,87104.0,0.1814025]
[1742803681029,0.35156834,87105.0,87104.0,0.0006]
[1742803681219,0.35156834,87105.0,87104.0,0.1148029]
[1742803681421,0.35156834,87105.0,87104.0,0.1154029]
[1742803681621,0.35156834,87105.0,87104.0,0.1461029]
[1742803683132,0.4554033,87105.0,87104.0,0.1461029]
[1742803683332,0.47917394,87105.0,87104.0,0.1455029]
[1742803683828,0.47917394,87105.0,87104.0,0.1778029]
[1742803686531,0.47917394,87105.0,87104.0,0.063]
[1742803687730,0.47917394,87105.0,87104.0,0.1784829]
[1742803687935,0.47917394,87105.0,87104.0,0.063]
[1742803688430,0.59401394,87105.0,87104.0,0.1778029]
[1742803688632,0.59401394,87105.0,87104.0,0.1784029]
[1742803689134,0.49017898,87105.0,87104.0,0.1784029]
[1742803689336,0.46640834,87105.0,87104.0,0.1784029]
[1742803691236,0.46636834,87105.0,87104.0,0.1784029]
[1742803696635,0.82716834,87105.0,87104.0,0.1784029]
[1742803697041,0.85134558,87105.0,87104.0,0.1784029]
[1742803697542,0.49054558,87105.0,87104.0,0.1784029]
[1742803697741,0.82716834,87105.0,87104.0,0.1784029]
[1742803697928,0.85134558,87105.0,87104.0,0.1784029]
[1742803698637,0.13994188,87105.0,87104.0,0.1784029]
[1742803698940,0.11480463,87105.0,87104.0,0.1784029]
[1742803699141,0.11576464,87105.0,87104.0,0.1784029]
[1742803699336,0.00096001,87105.0,87104.0,0.1784029]
[1742803699639,0.11576464,87105.0,87104.0,0.1784029]
[1742803701243,0.11480463,87105.0,87104.0,0.1784029]
[1742803701446,0.00017223,87116.0,87115.0,0.1147884]
[1742803701644,0.00117223,87116.0,87115.0,0.5694884]
[1742803702343,0.11597686,87116.0,87115.0,0.5694884]
[1742803702729,0.11597686,87116.0,87115.0,0.58079817]
[1742803702935,0.11797686,87116.0,87115.0,0.58079817]
[1742803703641,0.3608,87140.0,87129.0,0.11477]
[1742803703847,0.0311,87132.0,87129.0,0.11537]
[1742803704142,0.37899236,87130.0,87129.0,0.11537]
[1742803704351,0.49378249,87130.0,87129.0,0.11537]
[1742803705044,0.49978249,87130.0,87129.0,0.11537]
[1742803706037,0.49778249,87130.0,87129.0,0.11537]
[1742803706250,0.49978249,87130.0,87129.0,0.11537]
[1742803706638,0.49578249,87130.0,87129.0,0.11537]
[1742803706838,0.23623883,87130.0,87129.0,0.21127]
[1742803707050,0.23623883,87130.0,87129.0,0.17997]
[1742803707553,0.65983883,87130.0,87129.0,0.0006]
[1742803707750,0.65983883,87130.0,87122.0,0.1147785]
[1742803707751,0.0573853,87129.0,87122.0,0.1147785]
[1742803708050,0.0573853,87129.0,87110.0,0.0573974]
[1742803708051,0.1147792,87122.0,87107.0,0.4191]
[1742803708247,0.1154592,87122.0,87115.0,0.1147873]
[1742803708446,0.1147858,87117.0,87116.0,0.114786]
[1742803708648,0.5910258,87117.0,87116.0,0.115386]
[1742803708843,0.6538258,87117.0,87116.0,0.115386]
[1742803709036,0.76860275,87117.0,87116.0,0.0006]
[1742803709245,0.1147977,87108.0,87107.0,0.4191]
[1742803709542,0.5911977,87108.0,87107.0,0.5918952]
[1742803709745,0.6542977,87108.0,87107.0,0.5918952]
[1742803709935,0.76908651,87108.0,87107.0,0.5918952]
[1742803710131,0.65428881,87108.0,87107.0,0.5918952]
[1742803710339,0.26088881,87108.0,87107.0,0.6229952]
[1742803710535,0.11478881,87108.0,87107.0,0.7856952]
[1742803710940,0.003,87108.0,87107.0,0.7856952]
[1742803711943,0.11780067,87108.0,87107.0,0.7856952]
[1742803713153,0.003,87108.0,87107.0,0.7856952]
[1742803713350,3e-08,87116.0,87115.0,0.1147884]
[1742803713546,3e-08,87116.0,87115.0,0.5386884]
[1742803713752,3e-08,87116.0,87115.0,0.9584284]
[1742803714259,3e-08,87116.0,87115.0,1.0484284]
[1742803714648,0.00400003,87116.0,87115.0,1.0484284]
[1742803716256,0.00400003,87116.0,87115.0,1.06005958]
[1742803718860,0.00400003,87116.0,87115.0,1.0484284]
[1742803719156,3e-08,87122.0,87121.0,0.1147805]
[1742803719460,3e-08,87122.0,87121.0,1.1052805]
[1742803719656,0.0326,87127.0,87126.0,0.114774]
[1742803719861,0.03268,87127.0,87126.0,0.325454]
[1742803720363,0.14747013,87127.0,87126.0,0.389454]
[1742803721063,0.14747013,87127.0,87126.0,0.750254]
[1742803721265,0.14847013,87127.0,87126.0,0.750254]
[1742803724665,0.14847013,87127.0,87126.0,0.717554]
[1742803726665,0.14847013,87127.0,87126.0,0.748354]
[1742803729671,0.14847013,87127.0,87126.0,0.717554]
[1742803730171,0.15998936,87127.0,87126.0,0.717554]
[1742803730860,0.14847013,87127.0,87126.0,0.717554]
[1742803732768,0.14847013,87127.0,87126.0,0.749754]
[1742803733772,0.14847013,87127.0,87126.0,0.717554]
[1742803734560,0.14847013,87127.0,87126.0,0.749954]
[1742803735361,0.14847013,87127.0,87126.0,0.717554]
[1742803739862,0.09480143,87127.0,87126.0,0.507554]
[1742803740167,0.04444933,87127.0,87126.0,0.649554]
[1742803740763,3e-08,87127.0,87126.0,0.649554]
[1742803741164,0.02362157,87132.0,87131.0,0.1147674]
[1742803741359,0.02446157,87132.0,87131.0,0.2253674]
[1742803741564,0.02362157,87132.0,87131.0,0.2253674]
[1742803741760,7e-08,87132.0,87131.0,0.2253674]
[1742803741964,0.01989531,87132.0,87131.0,0.2575674]
[1742803742164,1e-08,87132.0,87131.0,0.29715324]
[1742803743170,1e-08,87136.0,87135.0,0.1147621]
[1742803743472,1e-08,87136.0,87135.0,0.6385621]
[1742803743863,0.11476906,87136.0,87135.0,0.6385621]
[1742803744061,0.02962036,87136.0,87135.0,0.6385621]
[1742803744262,8e-05,87139.0,87138.0,0.1147581]
[1742803744263,6e-08,87139.0,87138.0,0.1147581]
[1742803744466,6e-08,87139.0,87138.0,0.7144581]
[1742803744664,6e-08,87144.0,87143.0,0.1147516]
[1742803744865,6e-08,87144.0,87143.0,0.57762691]
[1742803745074,6e-08,87145.0,87144.0,0.1147502]
[1742803745281,6e-08,87145.0,87144.0,0.4301102]
[1742803745580,0.0321,87149.0,87148.0,0.114745]
[1742803745769,0.0321,87149.0,87148.0,0.636145]
[1742803746076,0.0321,87149.0,87148.0,0.700045]
[1742803746780,0.0624,87149.0,87148.0,0.700045]
[1742803748879,0.0624,87149.0,87148.0,1.119145]
[1742803751477,0.0029,87151.0,87150.0,0.1147423]
[1742803751669,0.0029,87151.0,87150.0,0.2553423]
[1742803751865,0.0029,87151.0,87150.0,0.3158423]
[1742803752472,8e-05,87155.0,87154.0,0.1147371]
[1742803752674,0.0331,87159.0,87158.0,0.1147318]
[1742803752981,0.0004,87160.0,87159.0,0.1147305]
[1742803753176,0.0004,87160.0,87159.0,0.3872305]
[1742803753384,0.0004,87160.0,87159.0,0.4485305]
[1742803753767,0.11513218,87160.0,87159.0,0.4485305]
[1742803753970,0.11513218,87160.0,87159.0,0.3485305]
[1742803754172,0.14513218,87160.0,87159.0,0.35983291]
[1742803755681,0.14513218,87160.0,87159.0,0.3485305]
[1742803756283,0.14513218,87160.0,87159.0,0.36014794]
[1742803757286,0.14513218,87160.0,87159.0,0.3485305]
[1742803759282,0.14513218,87160.0,87159.0,0.3166305]
[1742803760583,0.14513218,87160.0,87159.0,0.1766305]
[1742803763683,0.11597218,87176.0,87175.0,0.1797094]
[1742803763887,0.17967218,87176.0,87175.0,0.1797094]
[1742803767796,0.29438028,87176.0,87175.0,0.1797094]
[1742803768296,0.17967218,87176.0,87175.0,0.1797094]
[1742803773795,0.29438028,87176.0,87175.0,0.1153094]
[1742803774002,0.40898028,87176.0,87175.0,0.1153094]
[1742803774383,0.40898028,87176.0,87175.0,0.1457094]
[1742803774788,0.40898028,87176.0,87175.0,0.1772094]
[1742803780494,0.29427218,87176.0,87175.0,0.1772094]
[1742803781206,0.40898028,87176.0,87175.0,0.1772094]
[1742803784309,0.29427218,87176.0,87175.0,0.1772094]
[1742803784495,0.29423218,87176.0,87175.0,0.1772094]
[1742803784693,0.26183218,87176.0,87175.0,0.1772094]
[1742803784912,0.26099218,87176.0,87175.0,0.1772094]
[1742803785207,0.11597218,87176.0,87175.0,0.1772094]
[1742803785400,0.11513218,87176.0,87175.0,0.1772094]
[1742803785603,0.11597218,87176.0,87175.0,0.2872094]
[1742803785802,0.11513218,87176.0,87175.0,0.2872094]
[1742803786208,0.14763218,87176.0,87175.0,0.2872094]
[1742803788112,0.11513218,87176.0,87175.0,0.2872094]
[1742803790314,0.14713218,87176.0,87175.0,0.2872094]
[1742803791208,0.17923218,87176.0,87175.0,0.2872094]
[1742803791808,0.17923218,87176.0,87175.0,0.6480094]
[1742803795114,0.11513218,87176.0,87175.0,0.6480094]
[1742803798718,0.17893218,87176.0,87175.0,0.6480094]
[1742803799405,0.11513218,87176.0,87175.0,0.6480094]
[1742803800017,0.11513218,87176.0,87175.0,0.65662522]
[1742803802815,0.07670528,87176.0,87175.0,0.65662522]
[1742803803516,0.03724478,87176.0,87175.0,0.65662522]
[1742803803708,0.03724478,87176.0,87175.0,0.75662522]
[1742803804108,8e-05,87177.0,87176.0,0.1147081]
[1742803804304,0.0029,87181.0,87180.0,0.1147029]
[1742803804517,0.0029,87181.0,87180.0,0.2253829]
[1742803804703,0.0029,87181.0,87180.0,0.2576829]
[1742803804903,0.0029,87181.0,87180.0,0.2907829]
[1742803806022,0.0029,87181.0,87180.0,0.4007829]
[1742803807122,1e-07,87192.0,87191.0,0.1146884]
[1742803807317,1e-07,87192.0,87191.0,0.7160884]
[1742803807514,1e-07,87192.0,87191.0,0.8116884]
[1742803808206,1e-07,87196.0,87195.0,0.1146831]
[1742803808409,1e-07,87196.0,87195.0,1.1751831]
[1742803808615,1e-07,87196.0,87195.0,1.2384831]
[1742803809016,1e-07,87196.0,87195.0,1.1284831]
[1742803809612,0.11468491,87196.0,87195.0,1.1284831]
[1742803810128,0.11468491,87196.0,87195.0,0.9584831]
[1742803810314,0.11552491,87196.0,87195.0,0.9584831]
[1742803810621,0.18018491,87196.0,87195.0,0.9893831]
[1742803810819,0.18102491,87196.0,87195.0,0.9893831]
[1742803811918,0.18102491,87196.0,87195.0,0.9584831]
[1742803813112,0.18102491,87196.0,87195.0,0.8951831]
[1742803813315,0.18102491,87196.0,87195.0,0.5413831]
[1742803813624,0.29570671,87196.0,87195.0,0.5413831]
[1742803814426,0.29570671,87196.0,87195.0,0.4760831]
[1742803815426,0.29570671,87196.0,87195.0,0.5388831]
[1742803817718,0.18102491,87196.0,87195.0,0.5388831]
[1742803818520,0.18102491,87196.0,87195.0,0.4760831]
[1742803818818,0.29570671,87196.0,87195.0,0.3614]
[1742803819018,0.29570671,87196.0,87195.0,0.0006]
[1742803819217,0.1720359,87190.0,87189.0,0.1720303]
[1742803819416,0.28987591,87190.0,87189.0,0.1726703]
[1742803819615,0.28987591,87190.0,87189.0,0.115331]
[1742803819930,0.40456861,87190.0,87189.0,0.115331]
[1742803821320,0.47066861,87190.0,87189.0,0.115331]
[1742803821626,0.29863271,87190.0,87189.0,0.115331]
[1742803821818,0.18167271,87190.0,87189.0,0.586131]
[1742803822018,0.29847271,87190.0,87189.0,0.648631]
[1742803823516,0.18167271,87190.0,87189.0,0.66006561]
[1742803826220,0.1807927,87190.0,87189.0,0.66006561]
[1742803826418,0.1816327,87190.0,87189.0,0.648631]
[1742803827036,0.1816327,87190.0,87189.0,0.65989841]
[1742803827618,0.1816327,87190.0,87189.0,0.648631]
[1742803828224,0.1155327,87190.0,87189.0,0.648631]
[1742803828429,0.1146927,87190.0,87189.0,0.648631]